fUSD/lending_fUSD_20250623
["ID","MTS","AMOUNT","RATE_DAILY","PERIOD"]
[367131337,1750665081106,-494.91,0.00027945,3]
[367131338,1750665081117,-490.0,0.00027945,3]
[367131339,1750665081126,-490.0,0.00027945,3]
[367131340,1750665081136,-490.0,0.00027945,3]
[367131341,1750665081145,-682.52,0.00027945,3]
[367131342,1750665081154,-490.0,0.00027945,3]
[367131343,1750665081166,-490.0,0.00027945,3]
[367131344,1750665081175,-992.14,0.00027945,3]
[367131345,1750665081184,-490.0,0.00027945,3]
[367131346,1750665081195,-792.47,0.00027945,3]
[367131347,1750665081204,-490.0,0.00027945,3]
[367131348,1750665081214,-490.0,0.00027945,3]
[367131349,1750665081226,-694.47,0.00027945,3]
[367131350,1750665081236,-571.27,0.00027945,3]
[367131351,1750665081245,-642.38,0.00027945,3]
[367131352,1750665081256,-490.0,0.00027945,3]
[367131353,1750665081266,-490.0,0.00027945,3]
[367131354,1750665081277,-307.56041659,0.00027945,3]
[367131355,1750665081287,-1226.31,0.00027945,3]
[367131356,1750665081297,-490.0,0.00027945,3]
[367131357,1750665081307,-490.0,0.00027945,3]
[367131358,1750665081318,-1123.21,0.00027945,3]
[367131359,1750665081329,-490.0,0.00027945,3]
[367131360,1750665081339,-490.0,0.00027945,3]
[367131361,1750665081348,-490.0,0.00027945,3]
[367131362,1750665081357,-1133.23,0.00027945,3]
[367131363,1750665081368,-518.3,0.00027945,3]
[367131364,1750665081378,-499.05785946,0.00027945,3]
[367131365,1750665081388,-490.0,0.00027945,3]
[367131366,1750665081397,-490.0,0.00027945,3]
[367131367,1750665081407,-670.7,0.00027945,3]
[367131368,1750665081417,-490.0,0.00027945,3]
[367131369,1750665081427,-490.0,0.00027945,3]
[367131370,1750665081438,-490.0,0.00027945,3]
[367131371,1750665081447,-490.0,0.00027945,3]
[367131372,1750665081455,-236.94190361,0.00027945,3]
[367131373,1750665081465,-490.0,0.00027945,3]
[367131374,1750665081474,-578.64,0.00027945,3]
[367131375,1750665081483,-490.0,0.00027945,3]
[367131376,1750665081493,-993.54,0.00027945,3]
[367131377,1750665081502,-302.34095174,0.00027945,3]
[367131378,1750665081511,-490.0,0.00027945,3]
[367131379,1750665081520,-490.0,0.00027945,3]
[367131380,1750665081530,-174.72808349,0.00027945,3]
[367131381,1750665081539,-967.76,0.00027945,3]
[367131382,1750665081549,-310.95403123,0.00027945,3]
[367131383,1750665081558,-490.0,0.00027945,3]
[367131384,1750665081567,-508.66,0.00027945,3]
[367131385,1750665081576,-490.0,0.00027945,3]
[367131386,1750665081585,-3755.94,0.00027945,3]
[367131387,1750665081595,-490.0,0.00027945,3]
[367131388,1750665081605,-582.53,0.00027945,3]
[367131389,1750665081614,-505.58,0.00027945,3]
[367131390,1750665081624,-2144.51,0.00027945,3]
[367131391,1750665081633,-490.0,0.00027945,3]
[367131392,1750665081643,-490.0,0.00027945,3]
[367131393,1750665081653,-490.0,0.00027945,3]
[367131394,1750665081662,-490.0,0.00027945,3]
[367131395,1750665081671,-490.0,0.00027945,3]
[367131396,1750665081681,-490.0,0.00027945,3]
[367131397,1750665081691,-490.0,0.00027945,3]
[367131398,1750665081700,-490.0,0.00027945,3]
[367131399,1750665081710,-301.88,0.00027945,3]
[367131400,1750665081719,-561.18,0.00027945,3]
[367131401,1750665081729,-490.0,0.00027945,3]
[367131402,1750665081739,-528.73,0.00027945,3]
[367131403,1750665081749,-1111.73,0.00027945,3]
[367131404,1750665081759,-949.02,0.00027945,3]
[367131405,1750665081768,-490.0,0.00027945,3]
[367131406,1750665081778,-490.0,0.00027945,3]
[367131407,1750665081788,-490.0,0.00027945,3]
[367131408,1750665081797,-490.0,0.00027945,3]
[367131409,1750665081807,-4587.21,0.00027945,3]
[367131410,1750665081816,-490.0,0.00027945,3]
[367131411,1750665081825,-525.95,0.00027945,3]
[367131412,1750665081835,-497.04396212,0.00027945,3]
[367131413,1750665081844,-490.0,0.00027945,3]
[367131414,1750665081853,-490.0,0.00027945,3]
[367131415,1750665081862,-621.21,0.00027945,3]
[367131416,1750665081872,-490.0,0.00027945,3]
[367131417,1750665081881,-490.0,0.00027945,3]
[367131418,1750665081891,-1169.57,0.00027945,3]
[367131419,1750665081900,-2316.39,0.00027945,3]
[367131420,1750665081910,-490.0,0.00027945,3]
[367131421,1750665081919,-490.0,0.00027945,3]
[367131422,1750665081930,-490.0,0.00027945,3]
[367131423,1750665081939,-956.96,0.00027945,3]
[367131424,1750665081949,-1387.9,0.00027945,3]
[367131425,1750665081959,-691.28,0.00027945,3]
[367131426,1750665081967,-10717.07,0.00027945,3]
[367131427,1750665081978,-917.45,0.00027945,3]
[367131428,1750665081987,-1088.76,0.00027945,3]
[367131429,1750665081996,-490.0,0.00027945,3]
[367131430,1750665082008,-702.14,0.00027945,3]
[367131431,1750665082017,-595.21,0.00027945,3]
[367131432,1750665082027,-490.0,0.00027945,3]
[367131433,1750665082036,-490.0,0.00027945,3]
[367131434,1750665082046,-864.46,0.00027945,3]
[367131435,1750665082055,-4643.17,0.00027945,3]
[367131436,1750665082065,-1079.72,0.00027945,3]
[367131437,1750665082074,-490.0,0.00027945,3]
[367131438,1750665082084,-570.62525941,0.00027945,3]
[367131439,1750665082094,-490.0,0.00027945,3]
[367131440,1750665082103,-817.64,0.00027945,3]
[367131441,1750665082112,-774.97,0.00027945,3]
[367131442,1750665082122,-1077.61,0.00027945,3]
[367131443,1750665082131,-490.0,0.00027945,3]
[367131444,1750665082140,-1165.94,0.00027945,3]
[367131445,1750665082149,-4614.84,0.00027945,3]
[367131446,1750665082158,-490.0,0.00027945,3]
[367131447,1750665082167,-490.0,0.00027945,3]
[367131448,1750665082177,-490.0,0.00027945,3]
[367131449,1750665082187,-490.0,0.00027945,2]
[367131450,1750665082196,-490.0,0.00027945,3]
[367131451,1750665082205,-2049.2,0.00027945,3]
[367131452,1750665082214,-652.3,0.00027945,3]
[367131453,1750665082224,-809.74,0.00027945,3]
[367131454,1750665082233,-490.0,0.00027945,3]
[367131455,1750665082242,-1363.03,0.00027945,3]
[367131456,1750665082252,-490.0,0.00027945,3]
[367131457,1750665082261,-553.84,0.00027945,3]
[367131458,1750665082270,-508.05,0.00027945,3]
[367131459,1750665082279,-490.0,0.00027945,3]
[367131460,1750665082288,-1489.9,0.00027945,3]
[367131461,1750665082298,-490.0,0.00027945,3]
[367131462,1750665082307,-490.0,0.00027945,3]
[367131463,1750665082316,-490.0,0.00027945,3]
[367131464,1750665082325,-1009.65,0.00027945,3]
[367131465,1750665082335,-1190.7,0.00027945,3]
[367131466,1750665082344,-1200.07,0.00027945,3]
[367131467,1750665082353,-1280.57,0.00027945,3]
[367131468,1750665082362,-490.0,0.00027945,3]
[367131469,1750665082371,-490.0,0.00027945,3]
[367131470,1750665082381,-359.12065816,0.00027945,3]
[367131471,1750665082391,-490.0,0.00027945,3]
[367131472,1750665082400,-490.0,0.00027945,3]
[367131473,1750665082409,-224.29227276,0.00027945,3]
[367131474,1750665082420,-490.0,0.00027945,3]
[367131475,1750665082430,-1170.78,0.00027945,3]
[367131476,1750665082439,-490.0,0.00027945,3]
[367131477,1750665082449,-490.0,0.00027945,3]
[367131478,1750665082458,-490.0,0.00027945,3]
[367131479,1750665082469,-490.0,0.00027945,3]
[367131480,1750665082478,-490.0,0.00027945,3]
[367131481,1750665082488,-956.44,0.00027945,3]
[367131482,1750665082497,-572.0,0.00027945,3]
[367131483,1750665082507,-490.0,0.00027945,3]
[367131484,1750665082518,-490.0,0.00027945,3]
[367131485,1750665082528,-869.62,0.00027945,3]
[367131486,1750665082537,-490.0,0.00027945,3]
[367131487,1750665082546,-1423.29,0.00027945,3]
[367131488,1750665082555,-490.0,0.00027945,3]
[367131489,1750665082564,-539.83,0.00027945,3]
[367131490,1750665082574,-992.64,0.00027945,3]
[367131491,1750665082583,-490.0,0.00027945,3]
[367131492,1750665082591,-3180.4,0.00027945,3]
[367131493,1750665082601,-747.63,0.00027945,3]
[367131494,1750665082612,-490.0,0.00027945,3]
[367131495,1750665082623,-490.0,0.00027945,3]
[367131496,1750665082633,-490.0,0.00027945,3]
[367131497,1750665082642,-490.0,0.00027945,3]
[367131498,1750665082651,-1140.49,0.00027945,3]
[367131499,1750665082661,-490.0,0.00027945,3]
[367131500,1750665082671,-615.7,0.00027945,3]
[367131501,1750665082680,-490.0,0.00027945,3]
[367131502,1750665082691,-852.0,0.00027945,3]
[367131503,1750665082701,-1016.47,0.00027945,3]
[367131504,1750665082711,-490.0,0.00027945,3]
[367131505,1750665082720,-966.13,0.00027945,3]
[367131506,1750665082730,-2112.61,0.00027945,3]
[367131507,1750665082740,-1260.84,0.00027945,3]
[367131508,1750665082750,-575.92,0.00027945,3]
[367131509,1750665082760,-490.0,0.00027945,3]
[367131510,1750665082769,-926.89,0.00027945,3]
[367131511,1750665082779,-699.39,0.00027945,3]
[367131512,1750665082788,-661.4,0.00027945,3]
[367131513,1750665082797,-543.13,0.00027945,3]
[367131514,1750665082807,-490.0,0.00027945,3]
[367131515,1750665082816,-7307.56,0.00027945,3]
[367131516,1750665082825,-490.0,0.00027945,3]
[367131517,1750665082834,-1188.57,0.00027945,3]
[367131518,1750665082843,-1275.33,0.00027945,3]
[367131519,1750665082852,-490.0,0.00027945,3]
[367131520,1750665082862,-634.06114308,0.00027945,3]
[367131521,1750665082871,-490.0,0.00027945,3]
[367131522,1750665082881,-649.03,0.00027945,3]
[367131523,1750665082890,-1148.8,0.00027945,3]
[367131524,1750665082900,-490.0,0.00027945,3]
[367131525,1750665082909,-490.0,0.00027945,3]
[367131526,1750665082918,-490.0,0.00027945,3]
[367131527,1750665082930,-1769.62,0.00027945,3]
[367131528,1750665082939,-1684.74,0.00027945,3]
[367131529,1750665082948,-1245.46,0.00027945,3]
[367131530,1750665082957,-515.53720027,0.00027945,3]
[367131531,1750665082967,-490.0,0.00027945,3]
[367131532,1750665082977,-490.0,0.00027945,3]
[367131533,1750665082986,-490.0,0.00027945,3]
[367131534,1750665082995,-490.0,0.00027945,3]
[367131535,1750665083005,-946.71,0.00027945,3]
[367131536,1750665083014,-2328.53,0.00027945,3]
[367131537,1750665083023,-1790.2,0.00027945,3]
[367131538,1750665083032,-490.0,0.00027945,3]
[367131539,1750665083042,-490.0,0.00027945,3]
[367131540,1750665083051,-490.0,0.00027945,3]
[367131541,1750665083060,-490.0,0.00027945,3]
[367131542,1750665083069,-490.0,0.00027945,3]
[367131543,1750665083078,-490.0,0.00027945,3]
[367131544,1750665083087,-490.0,0.00027945,3]
[367131545,1750665083096,-490.0,0.00027945,3]
[367131546,1750665083106,-490.0,0.00027945,3]
[367131547,1750665083115,-490.0,0.00027945,3]
[367131548,1750665083124,-1416.9,0.00027945,3]
[367131549,1750665083134,-490.0,0.00027945,3]
[367131550,1750665083143,-253.54489225,0.00027945,3]
[367131551,1750665083152,-569.78,0.00027945,3]
[367131552,1750665083161,-490.0,0.00027945,3]
[367131553,1750665083170,-1584.55,0.00027945,3]
[367131554,1750665083179,-490.0,0.00027945,3]
[367131555,1750665083189,-490.0,0.00027945,3]
[367131556,1750665083198,-302.1325839,0.00027945,3]
[367131557,1750665083207,-490.0,0.00027945,3]
[367131558,1750665083216,-1146.51,0.00027945,3]
[367131559,1750665083225,-721.25,0.00027945,3]
[367131560,1750665083234,-1328.97,0.00027945,3]
[367131561,1750665083243,-1180.0,0.00027945,3]
[367131562,1750665083252,-1878.33,0.00027945,3]
[367131563,1750665083261,-493.11429948,0.00027945,3]
[367131564,1750665083271,-490.0,0.00027945,3]
[367131565,1750665083280,-634.08574993,0.00027945,3]
[367131566,1750665083289,-1168.59,0.00027945,3]
[367131567,1750665083298,-490.0,0.00027945,3]
[367131568,1750665083307,-1333.53,0.00027945,3]
[367131569,1750665083316,-1620.62,0.00027945,3]
[367131570,1750665083325,-631.77,0.00027945,3]
[367131571,1750665083335,-1030.66,0.00027945,3]
[367131572,1750665083343,-214.65378521,0.00027945,3]
[367131573,1750665083352,-490.0,0.00027945,3]
[367131574,1750665083361,-490.0,0.00027945,3]
[367131575,1750665083371,-490.0,0.00027945,3]
[367131576,1750665083380,-1543.7,0.00027945,3]
[367131577,1750665083390,-490.0,0.00027945,3]
[367131578,1750665083399,-490.0,0.00027945,3]
[367131579,1750665083407,-490.0,0.00027945,3]
[367131580,1750665083417,-490.0,0.00027945,3]
[367131581,1750665083426,-490.0,0.00027945,3]
[367131582,1750665083435,-811.77,0.00027945,3]
[367131583,1750665083444,-1156.18,0.00027945,3]
[367131584,1750665083453,-1152.47,0.00027945,3]
[367131585,1750665083462,-490.0,0.00027945,3]
[367131586,1750665083471,-1328.16,0.00027945,3]
[367131587,1750665083481,-892.28,0.00027945,3]
[367131588,1750665083490,-490.0,0.00027945,3]
[367131589,1750665083499,-574.60761465,0.00027945,3]
[367131590,1750665083508,-926.55,0.00027945,3]
[367131591,1750665083517,-490.0,0.00027945,3]
[367131592,1750665083526,-5128.86,0.00027945,3]
[367131593,1750665083535,-490.0,0.00027945,3]
[367131594,1750665083545,-490.0,0.00027945,3]
[367131595,1750665083554,-929.97,0.00027945,3]
[367131596,1750665083563,-895.24,0.00027945,3]
[367131597,1750665083572,-490.0,0.00027945,3]
[367131598,1750665083582,-490.0,0.00027945,3]
[367131599,1750665083591,-514.94,0.00027945,3]
[367131600,1750665083601,-210.0,0.00027945,3]
[367131601,1750665083611,-647.41,0.00027945,3]
[367131602,1750665083621,-1059.11,0.00027945,3]
[367131603,1750665083630,-3162.98,0.00027945,3]
[367131604,1750665083640,-10436.94,0.00027945,3]
[367131605,1750665083650,-490.0,0.00027945,3]
[367131606,1750665083660,-490.0,0.00027945,3]
[367131607,1750665083669,-490.0,0.00027945,3]
[367131608,1750665083679,-1189.53,0.00027945,3]
[367131609,1750665083688,-2195.9,0.00027945,3]
[367131610,1750665083698,-2202.71,0.00027945,3]
[367131611,1750665083708,-624.22,0.00027945,3]
[367131612,1750665083718,-1149.03,0.00027945,3]
[367131613,1750665083728,-490.0,0.00027945,3]
[367131614,1750665083737,-187.56214549,0.00027945,3]
[367131615,1750665083747,-4270.68,0.00027945,3]
[367131616,1750665083757,-534.25,0.00027945,3]
[367131617,1750665083767,-545.8,0.00027945,3]
[367131618,1750665083777,-490.0,0.00027945,3]
[367131619,1750665083786,-490.0,0.00027945,3]
[367131620,1750665083796,-490.0,0.00027945,3]
[367131621,1750665083806,-490.0,0.00027945,3]
[367131622,1750665083816,-490.0,0.00027945,3]
[367131623,1750665083826,-490.0,0.00027945,3]
[367131624,1750665083835,-1252.75,0.00027945,3]
[367131625,1750665083845,-1146.08,0.00027945,3]
[367131626,1750665083855,-1122.82,0.00027945,3]
[367131627,1750665083865,-490.0,0.00027945,3]
[367131628,1750665083875,-490.0,0.00027945,3]
[367131629,1750665083885,-2352.77,0.00027945,3]
[367131630,1750665083894,-490.0,0.00027945,3]
[367131631,1750665083904,-490.0,0.00027945,3]
[367131632,1750665083913,-490.0,0.00027945,3]
[367131633,1750665083922,-623.98,0.00027945,3]
[367131634,1750665083936,-1981.72,0.00027945,3]
[367131635,1750665083945,-2769.06,0.00027945,3]
[367131636,1750665083955,-346.50740996,0.00027945,3]
[367131637,1750665083965,-263.34870109,0.00027945,3]
[367131638,1750665083977,-502.64,0.00027945,3]
[367131639,1750665083987,-490.0,0.00027945,3]
[367131640,1750665083997,-289.64922492,0.00027945,3]
[367131641,1750665084011,-156.32713339,0.00027945,3]
[367131642,1750665084021,-490.0,0.00027945,3]
[367131643,1750665084030,-308.63011231,0.00027945,3]
[367131644,1750665084040,-513.75233737,0.00027945,3]
[367131645,1750665084050,-1210.66,0.00027945,3]
[367131646,1750665084059,-1247.42,0.00027945,3]
[367131647,1750665084069,-544.19,0.00027945,3]
[367131648,1750665084079,-490.0,0.00027945,3]
[367131649,1750665084089,-707.04,0.00027945,3]
[367131650,1750665084099,-490.0,0.00027945,3]
[367131651,1750665084109,-1979.61,0.00027945,3]
[367131652,1750665084119,-1987.6,0.00027945,3]
[367131653,1750665084129,-1076.76,0.00027945,3]
[367131654,1750665084139,-10751.97,0.00027945,3]
[367131655,1750665084148,-490.0,0.00027945,3]
[367131656,1750665084158,-490.0,0.00027945,3]
[367131657,1750665084167,-3423.31,0.00027945,3]
[367131658,1750665084177,-2864.01,0.00027945,3]
[367131659,1750665084186,-490.0,0.00027945,3]
[367131660,1750665084196,-490.0,0.00027945,3]
[367131661,1750665084206,-490.0,0.00027945,3]
[367131662,1750665084215,-490.0,0.00027945,3]
[367131663,1750665084225,-490.0,0.00027945,3]
[367131664,1750665084235,-633.23,0.00027945,3]
[367131665,1750665084244,-490.0,0.00027945,3]
[367131666,1750665084254,-490.0,0.00027945,3]
[367131667,1750665084264,-490.0,0.00027945,3]
[367131668,1750665084273,-490.0,0.00027945,3]
[367131669,1750665084283,-490.0,0.00027945,3]
[367131670,1750665084293,-490.0,0.00027945,3]
[367131671,1750665084303,-1075.42,0.00027945,3]
[367131672,1750665084313,-490.0,0.00027945,3]
[367131673,1750665084323,-490.0,0.00027945,3]
[367131674,1750665084333,-2220.11,0.00027945,3]
[367131675,1750665084342,-598.99,0.00027945,3]
[367131676,1750665084352,-619.78,0.00027945,3]
[367131677,1750665084361,-857.04,0.00027945,3]
[367131678,1750665084371,-769.91,0.00027945,3]
[367131679,1750665084380,-2716.97,0.00027945,3]
[367131680,1750665084391,-471.14877919,0.00027945,3]
[367131681,1750665084400,-1140.15,0.00027945,3]
[367131682,1750665084411,-490.0,0.00027945,3]
[367131683,1750665084423,-490.0,0.00027945,3]
[367131684,1750665084441,-523.71,0.00027945,3]
[367131685,1750665084451,-1223.01,0.00027945,3]
[367131686,1750665084462,-490.0,0.00027945,3]
[367131687,1750665084472,-490.0,0.00027945,3]
[367131688,1750665084482,-1554.38,0.00027945,3]
[367131689,1750665084492,-490.0,0.00027945,3]
[367131690,1750665084503,-490.0,0.00027945,3]
[367131691,1750665084516,-624.14,0.00027945,3]
[367131692,1750665084527,-2084.11,0.00027945,3]
[367131693,1750665084537,-490.0,0.00027945,3]
[367131694,1750665084547,-490.0,0.00027945,3]
[367131695,1750665084559,-1131.67,0.00027945,3]
[367131696,1750665084569,-1755.29,0.00027945,3]
[367131697,1750665084580,-1845.26,0.00027945,3]
[367131698,1750665084591,-1112.49,0.00027945,3]
[367131699,1750665084601,-257.21205508,0.00027945,3]
[367131700,1750665084610,-490.0,0.00027945,3]
[367131701,1750665084621,-1617.72,0.00027945,3]
[367131702,1750665084630,-1481.37,0.00027945,3]
[367131703,1750665084640,-1167.6,0.00027945,3]
[367131704,1750665084650,-409.94200811,0.00027945,3]
[367131705,1750665084660,-1688.6,0.00027945,3]
[367131706,1750665084670,-986.26,0.00027945,3]
[367131707,1750665084680,-1394.31,0.00027945,3]
[367131708,1750665084690,-232.31683165,0.00027945,3]
[367131709,1750665084701,-490.0,0.00027945,3]
[367131710,1750665084711,-5812.93,0.00027945,3]
[367131711,1750665084721,-1040.55,0.00027945,3]
[367131712,1750665084731,-490.0,0.00027945,3]
[367131713,1750665084740,-490.0,0.00027945,3]
[367131714,1750665084750,-490.0,0.00027945,3]
[367131715,1750665084760,-490.0,0.00027945,3]
[367131716,1750665084770,-490.0,0.00027945,3]
[367131717,1750665084780,-4291.55,0.00027945,3]
[367131718,1750665084789,-933.58,0.00027945,3]
[367131719,1750665084799,-490.0,0.00027945,3]
[367131720,1750665084809,-1044.21,0.00027945,3]
[367131721,1750665084819,-1656.36,0.00027945,3]
[367131722,1750665084828,-490.0,0.00027945,3]
[367131723,1750665084838,-1188.44,0.00027945,3]
[367131724,1750665084848,-490.0,0.00027945,3]
[367131725,1750665084858,-490.0,0.00027945,3]
[367131726,1750665084867,-712.63,0.00027945,3]
[367131727,1750665084876,-955.97,0.00027945,3]
[367131728,1750665084887,-490.0,0.00027945,3]
[367131729,1750665084896,-490.0,0.00027945,3]
[367131730,1750665084906,-490.0,0.00027945,3]
[367131731,1750665084916,-1229.83,0.00027945,3]
[367131732,1750665084928,-490.0,0.00027945,3]
[367131733,1750665084939,-490.0,0.00027945,3]
[367131734,1750665084948,-490.0,0.00027945,3]
[367131735,1750665084958,-490.0,0.00027945,3]
[367131736,1750665084968,-725.05,0.00027945,3]
[367131737,1750665084978,-1130.89,0.00027945,3]
[367131738,1750665084988,-505.79,0.00027945,3]
[367131739,1750665084997,-300.0,0.00027945,3]
[367131740,1750665085008,-551.22,0.00027945,3]
[367131741,1750665085018,-490.0,0.00027945,3]
[367131742,1750665085027,-490.0,0.00027945,3]
[367131743,1750665085037,-490.0,0.00027945,3]
[367131744,1750665085046,-490.0,0.00027945,3]
[367131745,1750665085056,-5782.36,0.00027945,3]
[367131746,1750665085066,-881.99,0.00027945,3]
[367131747,1750665085075,-490.0,0.00027945,2]
[367131748,1750665085085,-8133.36,0.00027945,3]
[367131749,1750665085094,-1196.57,0.00027945,3]
[367131750,1750665085104,-1074.01,0.00027945,3]
[367131751,1750665085114,-1044.39,0.00027945,60]
[367131752,1750665085123,-490.0,0.00027945,3]
[367131753,1750665085133,-490.0,0.00027945,3]
[367131754,1750665085146,-2487.78,0.00027945,3]
[367131755,1750665085156,-1615.17,0.00027945,3]
[367131756,1750665085166,-490.0,0.00027945,3]
[367131757,1750665085175,-1010.88,0.00027945,3]
[367131758,1750665085185,-2044.71,0.00027945,3]
[367131759,1750665085195,-504.29058198,0.00027945,3]
[367131760,1750665085205,-607.3,0.00027945,3]
[367131761,1750665085214,-1117.87,0.00027945,3]
[367131762,1750665085224,-490.0,0.00027945,3]
[367131763,1750665085233,-1227.5,0.00027945,3]
[367131764,1750665085243,-500.69898662,0.00027945,3]
[367131765,1750665085252,-2305.53,0.00027945,3]
[367131766,1750665085262,-722.87,0.00027945,3]
[367131767,1750665085271,-943.84,0.00027945,3]
[367131768,1750665085281,-490.0,0.00027945,3]
[367131769,1750665085290,-490.0,0.00027945,3]
[367131770,1750665085300,-490.0,0.00027945,3]
[367131771,1750665085310,-5428.27,0.00027945,3]
[367131772,1750665085319,-874.3,0.00027945,3]
[367131773,1750665085329,-490.0,0.00027945,3]
[367131774,1750665085338,-1288.28,0.00027945,3]
[367131775,1750665085348,-490.0,0.00027945,3]
[367131776,1750665085358,-490.0,0.00027945,3]
[367131777,1750665085367,-23116.75,0.00027945,3]
[367131778,1750665085377,-1226.13,0.00027945,3]
[367131779,1750665085387,-490.0,0.00027945,3]
[367131780,1750665085396,-490.0,0.00027945,3]
[367131781,1750665085406,-490.0,0.00027945,3]
[367131782,1750665085415,-506.19,0.00027945,3]
[367131783,1750665085425,-5920.75,0.00027945,3]
[367131784,1750665085434,-3800.08,0.00027945,3]
[367131785,1750665085443,-1255.63,0.00027945,3]
[367131786,1750665085453,-490.0,0.00027945,3]
[367131787,1750665085462,-490.0,0.00027945,3]
[367131788,1750665085472,-490.0,0.00027945,3]
[367131789,1750665085481,-1199.86,0.00027945,3]
[367131790,1750665085491,-490.0,0.00027945,3]
[367131791,1750665085500,-490.0,0.00027945,3]
[367131792,1750665085510,-490.0,0.00027945,3]
[367131793,1750665085520,-2064.36,0.00027945,3]
[367131794,1750665085529,-3510.35,0.00027945,3]
[367131795,1750665085538,-1771.9,0.00027945,3]
[367131796,1750665085547,-1109.69,0.00027945,3]
[367131797,1750665085556,-917.32,0.00027945,3]
[367131798,1750665085568,-605.35,0.00027945,3]
[367131799,1750665085577,-1200.51,0.00027945,3]
[367131800,1750665085587,-807.01,0.00027945,3]
[367131801,1750665085596,-490.0,0.00027945,3]
[367131802,1750665085605,-490.0,0.00027945,3]
[367131803,1750665085615,-491.5488962,0.00027945,3]
[367131804,1750665085625,-1345.63,0.00027945,3]
[367131805,1750665085634,-490.0,0.00027945,3]
[367131806,1750665085644,-517.745421,0.00027945,3]
[367131807,1750665085653,-3540.17,0.00027945,3]
[367131808,1750665085663,-1286.1,0.00027945,3]
[367131809,1750665085673,-584.71,0.00027945,3]
[367131810,1750665085683,-490.0,0.00027945,3]
[367131811,1750665085693,-269.681326,0.00027945,3]
[367131812,1750665085703,-4365.41,0.00027945,3]
[367131813,1750665085713,-740.92,0.00027945,3]
[367131814,1750665085722,-3910.06,0.00027945,3]
[367131815,1750665085732,-720.12,0.00027945,3]
[367131816,1750665085742,-1622.01,0.00027945,3]
[367131817,1750665086038,-516.11,0.00027945,3]
[367131818,1750665086051,-490.0,0.00027945,3]
[367131819,1750665086061,-2230.53,0.00027945,3]
[367131820,1750665086070,-1195.43,0.00027945,3]
[367131821,1750665086079,-490.0,0.00027945,3]
[367131822,1750665086088,-2134.31,0.00027945,3]
[367131823,1750665086098,-954.76,0.00027945,3]
[367131824,1750665086107,-1421.58,0.00027945,3]
[367131825,1750665086116,-490.0,0.00027945,3]
[367131826,1750665086126,-2473.53,0.00027945,3]
[367131827,1750665086135,-155.631381,0.00027945,3]
[367131828,1750665086144,-224.27325093,0.00027945,3]
[367131829,1750665086153,-1392.26,0.00027945,3]
[367131830,1750665086162,-490.0,0.00027945,3]
[367131831,1750665086171,-490.0,0.00027945,3]
[367131832,1750665086181,-1398.46,0.00027945,3]
[367131833,1750665086190,-490.0,0.00027945,3]
[367131834,1750665086200,-490.0,0.00027945,3]
[367131835,1750665086209,-490.0,0.00027945,3]
[367131836,1750665086219,-248.76,0.00027945,3]